bitfinex/quotes_BTCUSD_20240827
["timestamp","ask_amount","ask_price","bid_price","bid_amount"]
[1724786554932,0.02619499,62248.0,62247.0,1.747745]
[1724786558929,0.02619499,62248.0,62247.0,2.069045]
[1724786559569,0.02619499,62248.0,62247.0,1.747745]
[1724786560275,0.02619499,62248.0,62247.0,2.069045]
[1724786561896,0.02701699,62248.0,62247.0,2.069045]
[1724786573816,0.02701699,62248.0,62247.0,2.0699492]
[1724786574069,0.02701699,62248.0,62247.0,2.0659492]
[1724786574287,0.02701699,62248.0,62247.0,1.7486492]
[1724786574710,0.02701699,62248.0,62247.0,2.0699492]
[1724786575866,0.02300638,62248.0,62247.0,2.0699492]
[1724786576351,0.001822,62248.0,62247.0,2.0699492]
[1724786579505,0.02701018,62248.0,62247.0,2.0699492]
[1724786583332,0.02701018,62248.0,62247.0,2.0967006]
[1724786584222,0.02701018,62248.0,62247.0,2.19614699]
[1724786585152,0.02701018,62248.0,62247.0,1.87484699]
[1724786585366,0.02701018,62248.0,62247.0,1.31690591]
[1724786585608,0.02701018,62248.0,62247.0,1.38959559]
[1724786586275,0.02601018,62248.0,62247.0,1.38759559]
[1724786586495,0.02601018,62248.0,62247.0,1.37359559]
[1724786586719,0.02701018,62248.0,62247.0,1.37559559]
[1724786586951,0.02701018,62248.0,62247.0,1.38959559]
[1724786586952,0.02801018,62248.0,62247.0,1.38959559]
[1724786588007,0.02701018,62248.0,62247.0,1.38759559]
[1724786588479,0.02801018,62248.0,62247.0,1.38959559]
[1724786598492,0.04826494,62259.0,62258.0,0.004]
[1724786598715,0.000822,62267.0,62260.0,0.481849]
[1724786598716,0.04826494,62263.0,62260.0,0.481849]
[1724786598938,0.04826494,62264.0,62260.0,1.445548]
[1724786599154,0.04826494,62264.0,62260.0,1.60551345]
[1724786599387,0.02518524,62263.0,62260.0,1.60551345]
[1724786599610,0.02518524,62263.0,62260.0,1.60451345]
[1724786600483,0.001822,62261.0,62260.0,1.29728045]
[1724786601130,0.002822,62261.0,62260.0,1.31128045]
[1724786602016,0.002822,62261.0,62260.0,1.3344083]
[1724786605374,0.002822,62261.0,62260.0,1.6556413]
[1724786605597,0.002822,62261.0,62260.0,1.7556413]
[1724786625052,0.002822,62261.0,62260.0,1.4344083]
[1724786625938,0.462922,62261.0,62260.0,0.028]
[1724786626149,0.462922,62261.0,62260.0,0.188616]
[1724786626389,0.462922,62261.0,62260.0,0.831082]
[1724786626831,0.002822,62261.0,62260.0,1.152315]
[1724786627038,0.002822,62261.0,62260.0,1.31228045]
[1724786630979,0.002822,62261.0,62260.0,0.99195165]
[1724786632171,0.002822,62261.0,62260.0,1.17205165]
[1724786632419,0.002822,62261.0,62260.0,1.49328465]
[1724786632614,0.002822,62261.0,62260.0,1.49728465]
[1724786633046,0.002822,62261.0,62260.0,1.31718465]
[1724786636995,0.002822,62261.0,62260.0,1.31318465]
[1724786637187,0.002822,62261.0,62260.0,0.99195165]
[1724786637446,0.188122,62261.0,62260.0,0.99195165]
[1724786637874,0.192722,62261.0,62260.0,0.99195165]
[1724786638095,0.24093826,62261.0,62260.0,0.99195165]
[1724786638488,0.24093826,62261.0,62260.0,0.0289042]
[1724786638977,0.51143826,62261.0,62260.0,0.1895202]
[1724786639203,0.51143826,62261.0,62260.0,0.28896659]
[1724786640563,0.463222,62261.0,62260.0,0.28896659]
[1724786641696,0.53556778,62261.0,62260.0,0.28896659]
[1724786641909,0.53556778,62261.0,62260.0,0.1895202]
[1724786643425,0.53556778,62261.0,62260.0,0.28896659]
[1724786644134,0.53556778,62261.0,62260.0,0.1895202]
[1724786644602,0.53556778,62261.0,62260.0,0.0289042]
[1724786644603,0.463222,62261.0,62260.0,0.0289042]
[1724786645049,0.60791357,62261.0,62260.0,0.0289042]
[1724786645505,0.463222,62261.0,62260.0,0.0289042]
[1724786646438,0.463222,62261.0,62260.0,0.08992636]
[1724786647997,0.463222,62261.0,62260.0,0.0289042]
[1724786649532,0.55962737,62261.0,62256.0,0.160626]
[1724786649753,0.07230403,62258.0,62256.0,0.26007239]
[1724786650410,0.07230403,62259.0,62257.0,0.160624]
[1724786651042,0.07230403,62259.0,62256.0,0.26007139]
[1724786651275,0.07230403,62258.0,62256.0,0.35716689]
[1724786651451,0.07230403,62258.0,62256.0,0.34316689]
[1724786651723,0.07230403,62258.0,62256.0,0.26007139]
[1724786651951,0.07230403,62258.0,62257.0,0.014]
[1724786652174,0.07230403,62259.0,62256.0,0.26007139]
[1724786652388,0.07230403,62259.0,62256.0,0.36616789]
[1724786652837,0.07230403,62259.0,62256.0,0.35716789]
[1724786653060,0.001,62258.0,62256.0,0.27407239]
[1724786653506,0.07230403,62259.0,62256.0,0.27407239]
[1724786653728,0.0481848,62257.0,62256.0,0.27407239]
[1724786653941,0.0481848,62257.0,62256.0,0.26007239]
[1724786654414,0.0481848,62257.0,62256.0,0.27407239]
[1724786654629,0.0481848,62257.0,62256.0,0.26007239]
[1724786654832,0.0481848,62257.0,62256.0,0.27407239]
[1724786655044,0.0481848,62257.0,62256.0,0.26007239]
[1724786655352,0.0481848,62257.0,62256.0,0.27407239]
[1724786655793,0.0491848,62257.0,62256.0,0.26907239]
[1724786656012,0.0491848,62257.0,62256.0,0.28307239]
[1724786656220,0.04817684,62257.0,62256.0,0.27407239]
[1724786656644,0.04917684,62257.0,62256.0,0.28307239]
[1724786656872,0.04917684,62257.0,62256.0,0.36756799]
[1724786657101,0.04917684,62257.0,62256.0,0.20694199]
[1724786657551,0.04917684,62257.0,62256.0,0.1074956]
[1724786657768,0.04917684,62257.0,62256.0,0.009]
[1724786658229,0.05017684,62257.0,62256.0,0.183627]
[1724786658433,0.002,62257.0,62256.0,0.183627]
[1724786659520,0.07426526,62257.0,62256.0,0.183627]
[1724786659743,0.07426526,62257.0,62256.0,0.023]
[1724786660214,0.07426526,62257.0,62256.0,0.02293646]
[1724786661314,0.07425045,62257.0,62256.0,0.268953]
[1724786661535,0.07425045,62257.0,62256.0,0.02293646]
[1724786666159,0.34825476,62257.0,62256.0,0.02293646]
[1724786666381,0.53825476,62257.0,62256.0,0.02293646]
[1724786666594,0.466,62257.0,62256.0,0.02293646]
[1724786667053,0.467,62257.0,62256.0,0.02293646]
[1724786667521,0.467,62257.0,62256.0,0.02384066]
[1724786667750,0.467822,62257.0,62256.0,0.02384066]
[1724786668208,0.466822,62257.0,62256.0,0.0149042]
[1724786668429,0.488822,62257.0,62256.0,0.0009042]
[1724786668641,0.63433152,62257.0,62256.0,0.0079042]
[1724786668855,0.63533152,62257.0,62256.0,0.0219042]
[1724786669066,0.05,62252.0,62243.0,0.45258953]
[1724786669277,0.04817421,62248.0,62244.0,0.07592405]
[1724786669484,0.04817421,62248.0,62242.0,0.09944639]
[1724786669909,0.07336796,62248.0,62242.0,0.09944639]
[1724786670126,0.07336796,62248.0,62245.0,0.09944639]
[1724786671044,0.07336214,62248.0,62245.0,0.09944639]
[1724786671257,0.07336214,62248.0,62246.0,0.02601054]
[1724786671485,0.07336214,62248.0,62246.0,0.28461054]
[1724786671705,0.07336214,62248.0,62247.0,0.16065]
[1724786671706,0.02519375,62248.0,62247.0,0.16065]
[1724786672151,0.02619375,62248.0,62247.0,0.80646275]
[1724786672386,0.02719375,62248.0,62247.0,1.39098394]
[1724786672593,0.02819375,62248.0,62247.0,1.39098394]
[1724786672810,0.02719375,62248.0,62247.0,1.39098394]
[1724786673032,0.02619375,62248.0,62247.0,1.26486275]
[1724786673292,0.02719375,62248.0,62247.0,1.26986275]
[1724786674601,0.02519375,62248.0,62247.0,1.26486275]
[1724786674818,0.02619375,62248.0,62247.0,1.26986275]
[1724786675041,0.02719375,62248.0,62247.0,1.26986275]
[1724786675515,0.02719375,62248.0,62247.0,1.27486275]
[1724786675716,0.02819375,62248.0,62247.0,1.27165]
[1724786676974,0.02819375,62248.0,62247.0,1.43161545]
[1724786679831,0.02901575,62248.0,62247.0,1.43161545]
[1724786688425,0.07723827,62248.0,62247.0,1.43161545]
[1724786690497,0.02901575,62248.0,62247.0,1.43161545]
[1724786692536,0.02901575,62248.0,62247.0,1.75291545]
[1724786693207,0.02901575,62248.0,62247.0,1.77022847]
[1724786694118,0.02901575,62248.0,62247.0,1.89703006]
[1724786694332,0.02701575,62248.0,62247.0,1.86022847]
[1724786694549,0.02601575,62248.0,62247.0,1.90102942]
[1724786694977,0.02701575,62248.0,62247.0,1.91402942]
[1724786695202,0.02701575,62248.0,62247.0,1.88722847]
[1724786695659,0.000822,62257.0,62249.0,0.004]
[1724786695926,0.000822,62257.0,62256.0,1.579589]
[1724786696169,5.46e-06,62257.0,62256.0,1.67903539]
[1724786696384,0.02519243,62257.0,62256.0,1.67903539]
[1724786696613,0.02519243,62257.0,62256.0,1.83900084]
[1724786697493,0.02519243,62257.0,62256.0,1.85300084]
[1724786697933,0.02519243,62257.0,62256.0,1.83900084]
[1724786698160,0.02519243,62257.0,62256.0,1.85300084]
[1724786698852,0.02519243,62257.0,62256.0,1.86700084]
[1724786699298,0.02519243,62257.0,62256.0,1.85300084]
[1724786699522,0.02519243,62257.0,62256.0,1.86700084]
[1724786700361,0.02519243,62257.0,62256.0,1.85300084]
[1724786700576,0.02519243,62257.0,62256.0,1.86700084]
[1724786701015,0.02519243,62257.0,62256.0,2.27425484]
[1724786701229,0.02519243,62257.0,62256.0,2.28825484]
[1724786701663,0.02519243,62257.0,62256.0,2.27425484]
[1724786701893,0.02519243,62257.0,62256.0,2.26025484]
[1724786702104,0.02519243,62257.0,62256.0,2.28825484]
[1724786703120,0.02519243,62257.0,62256.0,2.08825484]
[1724786703334,0.02519243,62257.0,62256.0,2.25288184]
[1724786704877,0.02519243,62257.0,62256.0,1.37298145]
[1724786705118,0.02519243,62257.0,62256.0,0.891762]
[1724786705335,0.49149243,62257.0,62256.0,0.570508]
[1724786705781,0.49149243,62257.0,62256.0,0.288627]
[1724786705998,0.49149243,62257.0,62256.0,0.78026013]
[1724786706222,0.49149243,62257.0,62256.0,1.00206774]
[1724786711003,0.02519243,62257.0,62256.0,1.32332174]
[1724786714609,0.02519243,62257.0,62256.0,1.32422594]
[1724786715426,0.02519243,62257.0,62256.0,1.00297194]
[1724786716677,0.02519243,62257.0,62256.0,0.9320392]
[1724786720078,0.02519243,62257.0,62256.0,1.2532932]
[1724786720286,0.02519243,62257.0,62256.0,0.9320392]
[1724786720685,0.02519243,62257.0,62256.0,1.2532932]
[1724786721776,0.02519243,62257.0,62256.0,0.9320392]
[1724786722647,0.02519243,62257.0,62256.0,1.2532932]
[1724786722876,0.02519243,62257.0,62256.0,0.9320392]
[1724786724191,0.48889243,62257.0,62256.0,0.9320392]
[1724786725270,0.02519243,62257.0,62256.0,0.9320392]
[1724786725484,0.02519243,62257.0,62256.0,1.05736952]
[1724786725694,0.02519243,62257.0,62256.0,0.9320392]
[1724786726095,0.02519243,62257.0,62256.0,1.03150362]
[1724786730197,0.02519243,62257.0,62256.0,0.61024962]
[1724786730491,0.55887598,62257.0,62256.0,0.0289042]
[1724786730659,0.51059243,62257.0,62256.0,0.0289042]
[1724786731308,0.48540546,62257.0,62256.0,0.0289042]
[1724786731553,0.48540546,62257.0,62256.0,0.0149042]
[1724786731793,0.48540546,62257.0,62256.0,0.0289042]
[1724786731997,0.48540546,62257.0,62256.0,0.0149042]
[1724786732205,0.48540546,62257.0,62256.0,0.0009042]
[1724786732640,0.48540546,62257.0,62256.0,0.0149042]
[1724786733073,0.48540546,62257.0,62256.0,0.02840466]
[1724786733502,0.55670498,62257.0,62256.0,0.04240466]
[1724786733722,0.07230498,62257.0,62256.0,0.52428566]
[1724786733951,0.07230498,62257.0,62256.0,0.85953966]
[1724786734477,0.07230498,62257.0,62256.0,0.5107852]
[1724786737504,5.46e-06,62257.0,62256.0,0.5107852]
[1724786741266,0.02519504,62257.0,62256.0,0.8320392]
[1724786741679,0.02519504,62257.0,62256.0,0.5107852]
[1724786747465,0.12164716,62257.0,62256.0,0.5107852]
[1724786752192,0.12164716,62257.0,62256.0,0.8320392]
[1724786752397,0.12164716,62257.0,62256.0,0.65197692]
[1724786752604,0.12164716,62257.0,62256.0,0.5107852]
[1724786757473,0.02519504,62257.0,62256.0,0.5107852]
[1724786758066,0.02519504,62257.0,62256.0,0.61025287]
[1724786762562,0.02519504,62257.0,62256.0,0.93150687]
[1724786762765,0.02519504,62257.0,62256.0,1.39300687]
[1724786763002,0.1216948,62257.0,62256.0,1.85356156]
[1724786763210,0.02519504,62257.0,62256.0,1.85356156]
[1724786763433,0.02519504,62257.0,62256.0,1.87087597]
[1724786764070,0.02519504,62257.0,62256.0,1.85687597]
[1724786764290,0.02519504,62257.0,62256.0,1.83956156]
[1724786764507,0.02519504,62257.0,62256.0,1.85687458]
[1724786764776,0.02519504,62257.0,62256.0,1.61810622]
[1724786764978,0.07344336,62257.0,62256.0,1.70357389]
[1724786765182,0.07344336,62257.0,62256.0,1.68626087]
[1724786765393,0.07344336,62257.0,62256.0,1.70026087]
[1724786765394,0.09756777,62257.0,62256.0,1.70026087]
[1724786766059,0.09756777,62257.0,62256.0,1.68626087]
[1724786766279,0.09756777,62257.0,62256.0,1.71426087]
[1724786766692,0.09756777,62257.0,62256.0,1.70026087]
[1724786766908,0.09756777,62257.0,62256.0,1.71426087]
[1724786768758,0.09756777,62257.0,62256.0,0.5107852]
[1724786768965,0.09756777,62257.0,62256.0,0.1895312]
[1724786769377,0.09756777,62257.0,62256.0,0.5107852]
[1724786769600,0.09756777,62257.0,62256.0,0.0289042]
[1724786769601,0.09856777,62257.0,62256.0,0.0289042]
[1724786769801,0.51049506,62257.0,62256.0,0.0289042]
[1724786770329,0.51049506,62257.0,62256.0,0.0149042]
[1724786771160,0.51049506,62257.0,62256.0,0.0009042]
[1724786771581,0.65522416,62257.0,62256.0,0.0139042]
[1724786771782,0.65522416,62257.0,62256.0,0.0009042]
[1724786772005,0.65522416,62257.0,62256.0,0.0149042]
[1724786772198,0.65522424,62257.0,62256.0,0.0149042]
[1724786772604,0.65522424,62257.0,62256.0,0.0009042]
[1724786772822,0.65522424,62257.0,62256.0,0.0059042]
[1724786773957,0.65522424,62257.0,62256.0,0.0089042]
[1724786774828,0.65522424,62257.0,62256.0,0.03580509]
[1724786775093,0.65522424,62257.0,62256.0,0.0089042]
[1724786775946,0.65422422,62257.0,62256.0,0.0089042]
[1724786776375,0.65422422,62257.0,62256.0,0.1695312]
[1724786776601,0.04919504,62257.0,62256.0,0.4907852]
[1724786776838,0.02519504,62257.0,62256.0,0.60952699]
[1724786777064,0.07342772,62257.0,62256.0,1.72323499]
[1724786777273,0.02519504,62257.0,62256.0,1.6044932]
[1724786777918,0.02519504,62257.0,62256.0,1.9257472]
[1724786778143,0.02519504,62257.0,62256.0,1.9177472]
[1724786778367,0.02519504,62257.0,62256.0,2.09171265]
[1724786778575,0.02519504,62257.0,62256.0,2.10571265]
[1724786778794,0.02519504,62257.0,62256.0,2.09171265]
[1724786779021,0.02519504,62257.0,62256.0,2.10571265]
[1724786779244,0.02519504,62257.0,62256.0,2.09171265]
[1724786779451,0.02519504,62257.0,62256.0,2.10571265]
[1724786780336,0.02519504,62257.0,62256.0,2.09171265]
[1724786780554,0.02519504,62257.0,62256.0,2.10571265]
[1724786785370,0.02519504,62257.0,62256.0,1.6244932]
[1724786787523,0.02519504,62257.0,62256.0,1.1532932]
[1724786787723,0.02519504,62257.0,62256.0,0.8320392]
[1724786787983,0.33529978,62257.0,62256.0,0.1895312]
[1724786788762,0.33529978,62257.0,62256.0,0.5107852]
[1724786789157,0.28709504,62257.0,62256.0,0.1895312]
[1724786789706,0.28709504,62257.0,62256.0,0.0289042]
[1724786789925,0.35940215,62257.0,62256.0,0.1895312]
[1724786790141,0.53990215,62257.0,62256.0,0.1895312]
[1724786790344,0.53990215,62257.0,62256.0,0.5107852]
[1724786790866,0.46759504,62257.0,62256.0,0.5107852]
[1724786791079,0.46759504,62257.0,62256.0,0.60393649]
[1724786791080,0.02519504,62257.0,62256.0,0.60393649]
[1724786791322,0.02519504,62257.0,62256.0,1.38999049]
[1724786791526,0.02519504,62257.0,62256.0,1.71124449]
[1724786793053,0.02519504,62257.0,62256.0,2.03249849]
[1724786794348,0.02519504,62257.0,62256.0,2.28106995]
[1724786795985,0.02519504,62257.0,62256.0,2.18791866]
[1724786796738,0.02519504,62257.0,62256.0,1.86666466]
[1724786799692,0.02519504,62257.0,62256.0,1.6180932]
[1724786799909,0.02519504,62257.0,62256.0,1.1532932]
[1724786804786,0.02519504,62257.0,62256.0,1.40186466]
[1724786804991,0.02519504,62257.0,62256.0,2.02673011]
[1724786806259,0.02519504,62257.0,62256.0,2.04404845]
[1724786806467,0.02519504,62257.0,62256.0,2.46930245]
[1724786807348,0.02519504,62257.0,62256.0,2.45530245]
[1724786807713,0.02519504,62257.0,62256.0,2.45198411]
[1724786807932,0.02519504,62257.0,62256.0,2.45530166]
[1724786808173,0.02519504,62257.0,62256.0,2.46930166]
[1724786808594,0.02519504,62257.0,62256.0,2.45530166]
[1724786810023,0.02519504,62257.0,62256.0,2.46930166]
[1724786811276,0.02519504,62257.0,62256.0,2.46930164]
[1724786812913,0.02519504,62257.0,62256.0,2.46530164]
[1724786813514,0.02519504,62257.0,62256.0,2.46930164]
[1724786813723,0.02519504,62257.0,62256.0,2.46530164]
[1724786813915,0.02519504,62257.0,62256.0,1.96154764]
[1724786816171,0.02118443,62257.0,62256.0,2.48560164]
[1724786816372,0.005422,62261.0,62260.0,1.388015]
[1724786816484,0.005422,62261.0,62260.0,1.54798045]
[1724786817530,0.005422,62261.0,62260.0,1.56198045]
[1724786817899,0.005422,62261.0,62260.0,1.57598045]
[1724786819356,0.03060787,62261.0,62260.0,1.57598045]
[1724786822878,0.03060787,62261.0,62260.0,1.89721345]
[1724786823110,0.03060787,62261.0,62260.0,2.1017302]
[1724786823569,0.03060787,62261.0,62260.0,2.2017302]
[1724786824169,0.03060787,62261.0,62260.0,2.2838188]
[1724786824431,0.03060787,62261.0,62260.0,2.30114148]
[1724786824636,0.03060787,62261.0,62260.0,2.31846437]
[1724786824841,0.03060787,62261.0,62260.0,2.30114169]
[1724786826423,0.03060787,62261.0,62260.0,2.45027218]
[1724786827700,0.03060787,62261.0,62260.0,2.45027203]
[1724786828121,0.03060787,62261.0,62260.0,2.46759506]
[1724786828323,0.03060787,62261.0,62260.0,2.45027232]
[1724786834553,0.03060787,62261.0,62260.0,2.45027345]
[1724786835302,0.07885522,62261.0,62260.0,2.45027345]
[1724786835508,0.07886979,62261.0,62260.0,2.45027345]
[1724786836376,0.07886979,62261.0,62260.0,2.45427345]
[1724786836593,0.03060787,62261.0,62260.0,2.45427345]
[1724786839627,0.03060787,62261.0,62260.0,2.43694929]
[1724786841950,0.04826693,62265.0,62264.0,0.437806]
[1724786842318,0.04825815,62279.0,62278.0,0.32114]
[1724786842491,0.3517004,62282.0,62278.0,0.32114]
[1724786842492,0.2793,62282.0,62280.0,0.32113]
[1724786842739,0.0724004,62285.0,62281.0,0.05696658]
[1724786842740,0.04825815,62285.0,62281.0,0.05696658]
[1724786842951,0.04825815,62285.0,62284.0,0.40908984]
[1724786843181,0.04825815,62285.0,62284.0,0.73019884]
[1724786843381,0.02517984,62285.0,62284.0,0.73019884]
[1724786843594,0.02517984,62285.0,62284.0,0.84102838]
[1724786844016,0.02517984,62285.0,62284.0,1.16213738]
[1724786844235,0.02517984,62285.0,62284.0,1.17413738]
[1724786845004,0.02517984,62285.0,62284.0,1.16213738]
[1724786845767,0.02517984,62285.0,62284.0,1.17613738]
[1724786846188,0.02517984,62285.0,62284.0,1.16213738]
[1724786846371,0.02517984,62285.0,62284.0,1.17613738]
[1724786846604,0.29297984,62285.0,62284.0,1.19013738]
[1724786846930,0.02517984,62285.0,62284.0,1.19013738]
[1724786848068,0.02517984,62285.0,62284.0,1.04094362]
[1724786854384,0.02600184,62285.0,62284.0,1.04094362]
[1724786855700,0.28360184,62285.0,62284.0,1.04094362]
[1724786858122,0.02600184,62285.0,62284.0,1.04094362]
[1724786870460,0.02600184,62285.0,62284.0,1.36205262]
[1724786870661,0.02600184,62285.0,62284.0,1.04094362]
[1724786871484,0.02600184,62285.0,62284.0,1.80915262]
[1724786871684,0.02600184,62285.0,62284.0,1.8264567]
[1724786871888,0.02600184,62285.0,62284.0,1.9264567]
[1724786872428,0.02600184,62285.0,62284.0,1.9124567]
[1724786872605,0.02600184,62285.0,62284.0,1.8984567]
[1724786873010,0.02600184,62285.0,62284.0,1.9264567]
[1724786873311,0.02600184,62285.0,62284.0,2.2375657]
[1724786873673,0.02600184,62285.0,62284.0,2.2515657]
[1724786874400,0.02600184,62285.0,62284.0,2.2375657]
[1724786875242,0.02600184,62285.0,62284.0,2.2515657]
[1724786875449,0.02600184,62285.0,62284.0,2.2375657]
[1724786875647,0.02600184,62285.0,62284.0,2.2235657]
[1724786875853,0.02600184,62285.0,62284.0,1.9164567]
[1724786876058,0.02600184,62285.0,62284.0,2.2515657]
[1724786876715,0.02600184,62285.0,62284.0,2.23426162]
[1724786878506,0.02600184,62285.0,62284.0,1.91315262]
[1724786880809,0.02600184,62285.0,62284.0,1.93045056]
[1724786881268,0.02600184,62285.0,62284.0,1.91315262]
[1724786881530,0.02600184,62285.0,62284.0,1.93045104]
[1724786884614,0.02600184,62285.0,62284.0,1.91315262]
[1724786884931,0.02600184,62285.0,62284.0,1.9304516]
[1724786888107,0.02600184,62285.0,62284.0,1.93045089]
[1724786891523,0.02600184,62285.0,62284.0,1.93045609]
[1724786894954,0.02600184,62285.0,62284.0,2.23426162]
[1724786895169,0.02600184,62285.0,62284.0,1.93045641]
[1724786895542,0.02600184,62285.0,62284.0,2.25156541]
[1724786896897,0.02600184,62285.0,62284.0,2.27836643]
[1724786897661,0.000822,62295.0,62294.0,0.160529]
[1724786897864,0.000822,62295.0,62294.0,0.67494928]
[1724786898071,0.000822,62295.0,62294.0,1.31706528]
[1724786898930,0.000822,62295.0,62294.0,1.348371]
[1724786899732,0.000822,62295.0,62294.0,1.334371]
[1724786899943,0.000822,62295.0,62294.0,1.348371]
[1724786900577,0.000822,62295.0,62294.0,1.362371]
[1724786900996,0.02599715,62295.0,62294.0,1.362371]
[1724786901799,0.02599715,62295.0,62294.0,1.34506528]
[1724786901991,0.02599715,62295.0,62294.0,1.36237554]
[1724786902194,0.02599715,62295.0,62294.0,1.34506528]
[1724786902666,0.02599715,62295.0,62294.0,1.36897262]
[1724786904711,0.02599715,62295.0,62294.0,1.38628359]
[1724786904921,0.02599715,62295.0,62294.0,1.38628054]
[1724786905142,0.02599715,62295.0,62294.0,1.36897262]
[1724786906524,0.02599715,62295.0,62294.0,1.63127262]
[1724786906742,0.02599715,62295.0,62294.0,1.82637262]
[1724786907145,0.02599715,62295.0,62294.0,1.63127262]
[1724786908385,0.02599715,62295.0,62294.0,1.64857943]
[1724786908800,0.02599715,62295.0,62294.0,1.65257943]
[1724786909458,0.02599715,62295.0,62294.0,1.37297262]
[1724786917806,0.02599715,62295.0,62294.0,1.39027899]
[1724786920615,0.02599715,62295.0,62294.0,1.39027882]
[1724786921077,0.02599715,62295.0,62294.0,1.65777882]
[1724786921708,0.02599715,62295.0,62294.0,2.17523682]
[1724786921932,0.02599715,62295.0,62294.0,2.30202832]
[1724786922547,0.02599715,62295.0,62294.0,2.28802832]
[1724786922760,0.02599715,62295.0,62294.0,2.27402832]
[1724786923212,0.02599715,62295.0,62294.0,2.60908632]
[1724786923417,0.02599715,62295.0,62294.0,2.59508632]
[1724786923655,0.000822,62302.0,62301.0,0.004]
[1724786923873,0.00823,62304.0,62303.0,0.939616]
[1724786924100,0.00823,62304.0,62303.0,1.360627]
[1724786924326,0.00823,62304.0,62303.0,2.01994332]
[1724786924565,0.00823,62304.0,62303.0,2.17990877]
[1724786924769,0.00823,62304.0,62303.0,2.20667652]
[1724786925196,0.00823,62304.0,62303.0,2.20667663]
[1724786925694,0.00822,62311.0,62310.0,2.01982908]
[1724786925883,0.00822,62311.0,62310.0,2.23980518]
[1724786926095,0.00822,62311.0,62310.0,2.26656928]
[1724786926451,0.00822,62311.0,62310.0,2.28385279]
[1724786926666,0.00822,62311.0,62310.0,2.23980518]
[1724786926861,0.00822,62311.0,62310.0,2.28384936]
[1724786927123,0.00822,62311.0,62310.0,2.29784936]
[1724786927697,0.03338137,62311.0,62310.0,2.29784936]
[1724786928437,0.03338137,62311.0,62310.0,2.27108872]
[1724786928633,0.03338137,62311.0,62310.0,2.28508872]
[1724786928833,0.03338137,62311.0,62310.0,2.30805409]
[1724786930707,0.03338137,62311.0,62310.0,2.62902909]
[1724786930946,0.00822,62320.0,62319.0,1.80602208]
[1724786931158,0.00822,62320.0,62319.0,1.91750954]
[1724786931414,0.27622,62320.0,62319.0,1.33408054]
[1724786931597,0.30138101,62320.0,62319.0,1.33408054]
[1724786932686,0.30138101,62320.0,62319.0,1.36208054]
[1724786933939,0.30138101,62320.0,62319.0,1.46142262]
[1724786936035,0.2973754,62320.0,62319.0,1.46142262]
[1724786936448,0.0293754,62320.0,62319.0,1.46142262]
[1724786937203,0.5131754,62320.0,62319.0,1.46142262]
[1724786937402,0.5131754,62320.0,62319.0,1.48551451]
[1724786938553,0.0293754,62320.0,62319.0,1.48551451]
[1724786940366,0.0293754,62320.0,62319.0,2.58177251]
[1724786940567,0.0293754,62320.0,62319.0,2.26084351]
[1724786940778,0.0293754,62320.0,62319.0,2.16150143]
[1724786940968,0.0293754,62320.0,62319.0,2.07334351]
[1724786941192,0.0293754,62320.0,62319.0,1.81044351]
[1724786941352,0.0293754,62320.0,62319.0,1.79644351]
[1724786941562,0.0293754,62320.0,62319.0,1.81044351]
[1724786941770,0.0293754,62320.0,62319.0,1.27534289]
[1724786941973,0.0293754,62320.0,62319.0,0.95441389]
[1724786942170,0.4831754,62320.0,62309.0,0.34434529]
[1724786942412,0.4831754,62320.0,62311.0,0.160484]
[1724786942413,0.265,62314.0,62311.0,0.160484]
[1724786942758,0.265,62314.0,62313.0,0.16048]
[1724786943033,0.265,62314.0,62313.0,0.48144]
[1724786944405,0.265,62314.0,62313.0,0.8024]
[1724786945015,0.265,62314.0,62313.0,0.8164]
[1724786945877,0.265,62314.0,62313.0,1.12336]
[1724786946340,0.265,62314.0,62313.0,1.13536]
[1724786946547,0.265,62314.0,62313.0,1.12336]
[1724786946762,0.265,62314.0,62313.0,1.13636]
[1724786946965,0.265,62314.0,62313.0,1.15036]
[1724786947134,0.265,62314.0,62313.0,1.13736]
[1724786947702,0.265,62314.0,62313.0,1.15136]
[1724786948124,0.265,62314.0,62313.0,1.13736]
[1724786948125,0.265822,62314.0,62313.0,1.13736]
[1724786948550,0.265822,62314.0,62313.0,1.15136]
[1724786949220,0.265822,62314.0,62313.0,1.13736]
[1724786949401,0.265822,62314.0,62313.0,1.15136]
[1724786949838,0.265822,62314.0,62313.0,1.13736]
[1724786950085,0.265822,62314.0,62313.0,1.2831945]
[1724786951077,0.265822,62314.0,62313.0,1.2971945]
[1724786951499,0.265822,62314.0,62313.0,1.13736]
[1724786951913,0.265822,62314.0,62313.0,1.15136]
[1724786960362,0.000822,62314.0,62313.0,1.15136]
[1724786961449,0.000822,62314.0,62313.0,1.1522631]
[1724786965633,0.00182202,62314.0,62313.0,0.5103431]
[1724786965874,0.45292202,62314.0,62313.0,0.1893831]
[1724786966292,0.45292202,62314.0,62313.0,0.5103431]
[1724786966492,0.45292202,62314.0,62313.0,0.1893831]
[1724786966692,0.45292202,62314.0,62313.0,0.5103431]
[1724786966903,0.45292202,62314.0,62313.0,0.69516982]
[1724786968563,0.451922,62314.0,62313.0,1.01612982]
[1724786968957,0.451922,62314.0,62313.0,0.93061838]
[1724786970009,0.451922,62314.0,62313.0,0.8313031]
[1724786975338,0.451922,62314.0,62313.0,0.93061838]
[1724786979622,0.000822,62314.0,62313.0,0.93061838]
[1724786979991,0.000822,62314.0,62313.0,0.8313031]
[1724786980397,0.00182202,62314.0,62313.0,0.8313031]
[1724786980992,0.00182202,62314.0,62313.0,0.95884086]
[1724786981192,0.00182202,62314.0,62313.0,1.05815614]
[1724786982693,0.00182202,62314.0,62313.0,1.04415614]
[1724786983101,0.000822,62314.0,62313.0,1.03015614]
[1724786983307,0.000822,62314.0,62313.0,1.04415614]
[1724786983515,0.000822,62314.0,62313.0,1.05815614]
[1724786986590,0.09729265,62314.0,62313.0,1.05815614]
[1724786986794,0.09729232,62314.0,62313.0,1.05815614]
[1724786986999,0.000822,62314.0,62313.0,1.05815614]
[1724786987240,0.0972878,62314.0,62313.0,1.05815614]
[1724786987849,0.000822,62314.0,62313.0,1.05815614]
[1724786988064,0.0972719,62314.0,62313.0,1.05815614]
[1724786988962,0.0972719,62314.0,62313.0,0.93061838]
[1724786989906,0.0972719,62314.0,62313.0,0.8313031]
[1724786990589,0.46872202,62314.0,62313.0,0.0289031]
[1724786990817,0.46872202,62314.0,62313.0,0.1893831]
[1724786991232,0.467722,62314.0,62313.0,0.4963431]
[1724786991489,0.56412828,62314.0,62313.0,0.4963431]
[1724786991710,0.56312607,62314.0,62313.0,0.60842436]
[1724786991934,0.000822,62314.0,62313.0,0.94038436]
[1724786992154,0.000822,62314.0,62313.0,0.92638436]
[1724786992155,0.07311664,62314.0,62313.0,0.92638436]
[1724786992392,0.07311664,62314.0,62313.0,0.93838436]
[1724786995170,0.07311664,62314.0,62313.0,1.03769964]
[1724786996726,0.07309556,62314.0,62313.0,1.03769964]